bitfinex-derivatives/quotes_SOLF0:USTF0_20241218
["timestamp","ask_amount","ask_price","bid_price","bid_amount"]
[1734553574161,2.3891,209.4,209.3,2.3902]
[1734553574361,39.94238768,209.5,209.23,5.73928306]
[1734553574559,0.95451725,209.53,209.24,0.87807839]
[1734553574758,5.62960491,209.5,209.24,0.87807839]
[1734553574955,45.57199259,209.5,209.25,2.9248]
[1734553575658,2.3887,209.44,209.33,2.3898]
[1734553575860,45.57199259,209.5,209.25,2.9248]
[1734553576059,35.3186588,209.35,209.16,3.1657]
[1734553576266,35.3186588,209.35,209.09,3.0982]
[1734553576463,35.3186588,209.35,209.13,5.77930708]
[1734553577067,41.1197616,209.35,209.13,5.77930708]
[1734553577567,35.3186588,209.3,209.13,5.77930708]
[1734553577965,35.3186588,209.4,209.13,5.77930708]
[1734553578268,0.95451725,209.53,209.22,35.3186588]
[1734553578462,2.3878,209.52,209.41,2.3889]
[1734553578662,0.95451725,209.53,209.33,5.903]
[1734553578870,5.69043109,209.56,209.33,9.0232]
[1734553579065,35.3186588,209.65,209.37,35.3186588]
[1734553579460,41.15318777,209.6,209.34,0.87799841]
[1734553579661,41.15318777,209.6,209.35,2.9519]
[1734553579870,41.15318777,209.6,209.39,5.82419526]
[1734553580163,38.3178588,209.7,209.43,35.3186588]
[1734553580366,5.86495602,209.68,209.43,35.3186588]
[1734553580564,2.9992,209.7,209.43,35.3186588]
[1734553580769,8.69089119,209.7,209.44,0.87722373]
[1734553581068,44.00954999,209.7,209.38,89.9386588]
[1734553581263,35.3186588,209.6,209.35,2.9519]
[1734553581464,9.64463463,209.7,209.47,5.60290172]
[1734553581661,0.95374344,209.7,209.48,35.3186588]
[1734553581860,0.95374344,209.7,209.53,35.3186588]
[1734553582068,0.81477498,209.74,209.54,0.87676988]
[1734553582270,0.81477498,209.74,209.66,5.64128168]
[1734553582570,35.3186588,209.9,209.66,5.64128168]
[1734553582870,2.3838,209.87,209.73,2.3852]
[1734553583075,5.64815571,209.87,209.66,5.64128168]
[1734553583273,2.3849,209.77,209.66,5.64128168]
[1734553583474,35.3186588,209.85,209.57,35.3186588]
[1734553583672,5.64815571,209.87,209.65,5.65903958]
[1734553583971,35.3186588,209.96,209.67,35.3186588]
[1734553584164,5.71291864,209.93,209.67,35.3186588]
[1734553584370,8.09601864,209.93,209.68,0.87614338]
[1734553584564,35.3186588,209.91,209.67,2.9853]
[1734553584969,3.0706,209.97,209.77,5.76098406]
[1734553585273,85.6675892,214.98,209.77,41.07964286]
[1734553585274,35.3186588,210.06,209.77,41.07964286]
[1734553585473,5.8027552,210.03,209.78,0.87573663]
[1734553585669,35.3186588,210.06,209.78,0.87573663]
[1734553585876,37.6996588,210.11,209.97,2.3825]
[1734553586067,5.6408205,210.09,209.83,2.9137]
[1734553586367,35.3186588,210.06,209.83,2.9137]
[1734553586573,35.3186588,209.96,209.68,4.0674]
[1734553586767,35.3186588,209.96,209.69,0.87586343]
[1734553586964,2.9101,210.05,209.79,5.60076599]
[1734553587168,35.3186588,210.12,209.87,35.3186588]
[1734553587377,5.84853179,210.11,209.88,2.9137]
[1734553587868,41.04263593,210.12,209.88,2.9137]
[1734553588170,35.3186588,210.02,209.85,5.58788257]
[1734553588370,35.3186588,209.97,209.69,54.54]
[1734553588670,35.3186588,209.92,209.68,3.2042]
[1734553589168,35.3186588,209.99,209.56,38.4277588]
[1734553589169,35.3186588,209.87,209.56,38.4277588]
[1734553589374,2.9182,209.86,209.57,0.87650254]
[1734553589672,35.3186588,209.77,209.69,4.75803786]
[1734553589872,35.3186588,209.77,209.55,3.2042]
[1734553589873,35.3186588,209.77,209.62,5.72397713]
[1734553590069,35.3186588,209.82,209.62,5.72397713]
[1734553590275,0.95306171,209.85,209.62,5.72397713]
[1734553590474,35.3186588,209.88,209.62,5.72397713]
[1734553590676,2.9705,210.0,209.77,35.3186588]
[1734553590977,120.3123657,210.06,209.88,35.3186588]
[1734553591270,35.3186588,210.18,209.88,35.3186588]
[1734553591478,6.097,210.21,209.93,35.3186588]
[1734553591678,5.57777422,210.19,209.94,2.9125]
[1734553591870,2.9705,210.21,209.98,38.23396957]
[1734553592069,3.0798,210.28,210.03,38.23396957]
[1734553592269,38.23396957,210.32,210.07,5.626391]
[1734553592270,5.67729562,210.31,210.07,5.626391]
[1734553592679,5.67729562,210.31,210.18,2.3801]
[1734553592873,2.9705,210.35,210.08,38.23396957]
[1734553593079,2.9705,210.35,210.13,38.23396957]
[1734553593279,2.9705,210.35,210.19,5.62410315]
[1734553593474,38.23396957,210.42,210.19,5.62410315]
[1734553593677,2.3778,210.4,210.26,2.3792]
[1734553593877,5.60008074,210.41,210.19,5.62410315]
[1734553594779,38.23396957,210.32,210.03,38.23396957]
[1734553595078,38.23396957,210.27,209.98,38.23396957]
[1734553595271,3.0552,210.26,209.99,0.87484307]
[1734553595478,38.23396957,210.22,209.95,8.9567]
[1734553595775,38.23396957,210.22,209.96,0.87494547]
[1734553595981,37.37858783,210.11,209.91,37.37858783]
[1734553596475,37.37858783,210.11,210.1,0.25139]
[1734553596683,37.37858783,210.11,209.91,37.37858783]
[1734553596684,74.75717566,210.11,209.77,37.37858783]
[1734553596980,37.37858783,209.94,209.84,5.84398201]
[1734553597281,37.37858783,209.94,209.87,2.3836]
[1734553597481,37.37858783,209.94,209.84,5.84398201]
[1734553597981,37.37858783,209.9,209.69,91.85858783]
[1734553598179,37.37858783,209.82,209.54,54.48]
[1734553598378,37.37858783,209.82,209.69,5.84622795]
[1734553598783,37.37858783,209.78,209.56,3.1668]
[1734553598983,37.37858783,209.78,209.67,5.76038866]
[1734553599283,37.37858783,209.88,209.67,43.13897649]
[1734553599579,37.37858783,210.0,209.79,37.37858783]
[1734553599887,37.37858783,209.96,209.86,2.3837]
[1734553600082,37.37858783,210.0,209.8,37.37858783]
[1734553600282,5.82162069,210.04,209.77,38.29151895]
[1734553600582,3.1109,210.05,209.87,5.62876842]
[1734553600781,38.29151895,210.15,209.87,43.92028737]
[1734553601282,38.29151895,210.15,209.88,0.87538062]
[1734553601479,38.29151895,210.15,209.88,1.0]
[1734553601879,38.29151895,210.09,209.82,38.29151895]
[1734553602180,38.29151895,209.93,209.67,38.29151895]
[1734553602481,38.29151895,209.93,209.77,5.83370807]
[1734553602883,38.29151895,209.88,209.62,41.48301895]
[1734553603084,38.29151895,209.82,209.51,38.29151895]
[1734553603279,38.29151895,209.82,209.64,5.73705153]
[1734553603478,38.29151895,209.77,209.64,5.73705153]
[1734553603681,2.9169,209.87,209.67,2.3859]
[1734553603682,2.3847,209.78,209.67,2.3859]
[1734553603879,5.58491758,209.81,209.64,5.73705153]
[1734553604079,38.29151895,209.77,209.52,3.1915]
[1734553604284,38.29151895,209.77,209.59,2.3868]
[1734553604485,38.29151895,209.72,209.43,54.5]
[1734553604688,2.3859,209.68,209.56,8.20639102]
[1734553604885,38.29151895,209.72,209.56,5.81919102]
[1734553605279,40.67691895,209.72,209.6,2.3867]
[1734553605485,38.29151895,209.82,209.56,5.81919102]
[1734553605787,38.29151895,209.87,209.58,38.29151895]
[1734553605987,2.3848,209.78,209.67,2.3859]
[1734553606187,38.29151895,209.82,209.57,6.167]
[1734553606488,2.3844,209.81,209.68,8.09331478]
[1734553606679,2.3844,209.81,209.68,5.70751478]
[1734553606880,38.29151895,209.87,209.58,38.29151895]
[1734553607081,38.29151895,209.87,209.67,5.82949959]
[1734553607282,38.29151895,209.7,209.32,38.29151895]
[1734553607486,38.29151895,209.59,209.5,5.6640286]
[1734553607682,38.29151895,209.59,209.33,6.1755]
[1734553607986,38.29151895,209.59,209.44,5.67433516]
[1734553608388,5.86443398,209.61,209.33,3.0696]
[1734553608389,38.29151895,209.54,209.33,3.0696]
[1734553608588,2.3876,209.53,209.42,2.3887]
[1734553609490,38.29151895,209.59,209.4,5.62967339]
[1734553609885,38.29151895,209.54,209.28,3.1059]
[1734553610092,38.29151895,209.49,209.28,3.1059]
[1734553610287,38.29151895,209.49,209.33,5.6394251]
[1734553610484,38.29151895,209.49,209.23,3.0543]
[1734553610691,38.29151895,209.44,209.23,3.0543]
[1734553610884,38.29151895,209.44,209.28,5.86364873]
[1734553611091,38.29151895,209.39,209.18,3.0646]
[1734553611390,38.29151895,209.34,209.09,3.0543]
[1734553611593,5.83669602,209.43,209.23,5.61419277]
[1734553611789,38.29151895,209.39,209.23,5.61419277]
[1734553612295,5.83669602,209.43,209.23,5.61419277]
[1734553612494,3.2252,209.48,209.23,5.61419277]
[1734553612795,5.77934982,209.53,209.26,38.29151895]
[1734553612987,38.29151895,209.49,209.24,6.1248]
[1734553613185,38.29151895,209.44,209.24,6.1248]
[1734553613697,38.29151895,209.45,209.23,5.61419277]
[1734553614092,38.29151895,209.4,209.23,5.61419277]
[1734553614493,38.29151895,209.35,209.09,3.0288]
[1734553614686,92.85151895,209.53,207.93,47.41522382]
[1734553614687,38.29151895,209.3,209.1,0.87845244]
[1734553614892,38.29151895,209.3,209.02,38.29151895]
[1734553615095,38.29151895,209.25,209.09,5.67434349]
[1734553615293,38.29151895,209.25,209.12,2.3922]
[1734553615294,2.3909,209.24,209.12,2.3922]
[1734553615498,38.29151895,209.3,209.09,5.67434349]
[1734553615795,38.29151895,209.35,209.09,5.67434349]
[1734553615999,5.85215067,209.37,209.12,38.29151895]
[1734553616194,38.29151895,209.4,209.13,0.87863419]
[1734553616397,38.29151895,209.35,209.1,2.998]
[1734553616595,38.29151895,209.3,209.1,2.998]
[1734553616795,38.29151895,209.35,209.1,2.998]
[1734553616996,5.82633995,209.38,209.12,38.29151895]
[1734553617197,5.82633995,209.38,209.1,2.998]
[1734553617497,38.29151895,209.4,209.1,2.998]
[1734553617498,38.29151895,209.4,209.12,38.29151895]
[1734553617798,38.29151895,209.35,209.1,2.998]
[1734553618000,38.29151895,209.3,209.02,38.29151895]
[1734553618195,38.29151895,209.3,209.17,5.7409768]
[1734553618393,38.29151895,209.35,209.17,5.7409768]
[1734553618695,3.0513,209.39,209.17,5.7409768]
[1734553618895,38.29151895,209.45,209.17,44.03249575]
[1734553619199,41.46281895,209.5,209.22,38.29151895]
[1734553619395,3.1713,209.5,209.4,2.3889]
[1734553619696,5.65487937,209.57,209.32,38.29151895]
[1734553619900,2.3876,209.53,209.39,2.389]
[1734553620100,38.29151895,209.55,209.4,5.71200973]
[1734553620601,38.29151895,209.5,209.23,3.0558]
[1734553620795,38.29151895,209.5,209.35,5.67474004]
[1734553621001,38.29151895,209.55,209.35,5.67474004]
[1734553621202,38.29151895,209.5,209.23,3.0558]
[1734553621500,38.29151895,209.6,209.34,5.73609168]
[1734553621693,38.29151895,209.55,209.34,5.73609168]
[1734553621894,9.3907,209.63,209.37,38.29151895]
[1734553622097,34.1362731,209.62,209.42,34.1362731]
[1734553622299,34.1362731,209.58,209.38,34.1362731]
[1734553622498,34.1362731,209.49,209.38,2.3892]
[1734553622698,34.1362731,209.45,209.34,5.73609168]
[1734553622999,34.1362731,209.45,209.24,35.09211328]
[1734553623198,34.1362731,209.53,209.33,39.93830346]
[1734553623497,2.3883,209.47,209.35,2.3896]
[1734553623702,34.1362731,209.41,209.24,6.0517]
[1734553623899,34.1362731,209.37,209.18,2.9257]
[1734553624098,34.1362731,209.33,209.18,2.9257]
[1734553624301,34.1362731,209.29,209.18,2.9257]
[1734553624604,2.3905,209.28,209.15,2.3918]
[1734553624804,34.1362731,209.29,209.18,5.72893753]
[1734553625002,34.1362731,209.33,209.18,5.72893753]
[1734553625404,34.1362731,209.37,209.2,34.1362731]
[1734553625705,34.1362731,209.37,209.18,5.72893753]
[1734553625900,34.1362731,209.33,209.18,5.72893753]
[1734553626106,2.3906,209.27,209.18,5.72893753]
[1734553626405,34.1362731,209.29,209.11,3.2245]
[1734553626705,34.1362731,209.25,209.06,34.1362731]
[1734553626901,34.1362731,209.29,209.14,5.86698555]
[1734553627104,34.1362731,209.29,209.06,34.1362731]
[1734553627304,40.01014546,209.29,209.06,34.1362731]
[1734553627504,34.1362731,209.22,209.06,5.83197762]
[1734553627702,2.3906,209.27,209.06,5.83197762]
[1734553627901,34.1362731,209.33,209.13,34.1362731]
[1734553628207,34.1362731,209.45,209.25,34.1362731]
[1734553628507,34.1362731,209.41,209.24,5.81992571]
[1734553628706,34.1362731,209.37,209.22,3.2215]
[1734553628905,34.1362731,209.37,209.23,5.70858899]
[1734553629106,39.9475903,209.46,209.26,34.1362731]
[1734553629309,2.3881,209.49,209.38,2.3892]
[1734553629605,34.1362731,209.46,209.27,3.2215]
[1734553629806,5.7114585,209.49,209.24,2.9879]
[1734553630008,5.7114585,209.49,209.24,6.0458]
[1734553630306,5.7114585,209.49,209.24,3.0579]
[1734553630706,34.1362731,209.38,209.24,3.0579]
[1734553630906,34.1362731,209.34,209.13,34.1362731]
[1734553631106,34.1362731,209.3,209.12,3.1304]
[1734553631307,34.1362731,209.3,209.16,5.73514207]
[1734553631502,34.1362731,209.26,209.06,3.0579]
[1734553631709,5.81544209,209.31,209.09,34.1362731]
[1734553632008,39.95171519,209.31,209.1,39.97121663]
[1734553632211,34.1362731,209.26,209.11,3.0858]
[1734553632403,34.1362731,209.22,209.1,5.83494353]
[1734553632601,34.1362731,209.18,209.07,3.0858]
[1734553632804,34.1362731,209.14,209.05,5.63247276]
[1734553633007,34.1362731,209.1,208.92,6.1437]
[1734553633209,34.1362731,209.14,208.97,5.6594702]
[1734553633702,34.1362731,209.14,208.84,6.1318]
[1734553633703,34.1362731,209.1,208.84,6.1318]
[1734553634208,34.1362731,209.1,208.96,5.8760594]
[1734553634507,34.1362731,209.1,208.84,6.1318]
[1734553634707,34.1362731,209.06,208.93,5.88869856]
[1734553634909,34.1362731,209.06,208.84,40.2680731]
[1734553635104,2.3935,209.01,208.9,2.3947]
[1734553635408,34.1362731,209.1,208.92,34.1362731]
[1734553635605,2.3923,209.12,209.0,2.3935]
[1734553635804,34.1362731,209.18,209.0,34.1362731]
[1734553636109,34.1362731,209.23,209.0,34.1362731]
[1734553636407,34.1362731,209.19,209.01,6.1172]
[1734553636608,34.1362731,209.15,209.01,5.76216811]
[1734553636905,34.1362731,209.07,208.92,3.2139]
[1734553637110,34.1362731,209.03,208.91,5.87124572]
[1734553638007,34.1362731,209.07,208.91,5.87124572]
[1734553638204,34.1362731,209.15,208.96,34.1362731]
[1734553638403,34.1362731,209.23,209.0,34.1362731]
[1734553638712,34.1362731,209.18,209.01,3.1289]
[1734553639010,2.3935,209.01,208.92,3.0851]
[1734553639205,34.1362731,209.0,208.91,5.87124572]
[1734553639411,34.1362731,209.0,208.84,3.1289]
[1734553639607,36.5298731,209.0,208.86,2.3952]
[1734553639808,34.1362731,209.0,208.8,34.1362731]
[1734553640103,34.1362731,209.0,208.88,5.8044421]
[1734553640303,34.1362731,209.09,208.88,5.8044421]
[1734553640504,34.1362731,208.92,208.76,3.0665]
[1734553640701,34.1362731,208.96,208.92,2.3944]
[1734553640901,34.1362731,209.01,208.84,34.1362731]
[1734553641107,34.1362731,209.05,208.84,34.1362731]
[1734553641300,34.1362731,209.01,208.85,3.0758]
[1734553641500,34.1362731,208.93,208.81,5.8050168]
[1734553641905,34.1362731,208.89,208.74,3.139]
[1734553642108,34.1362731,208.89,208.69,3.0758]
[1734553642307,34.1362731,208.85,208.76,5.88547441]
[1734553642707,34.1362731,208.89,208.76,5.88547441]
[1734553643302,34.1362731,208.93,208.76,5.88547441]
[1734553643502,34.1362731,208.93,208.58,6.2055]
[1734553643503,34.1362731,208.85,208.58,6.2055]
[1734553643706,34.1362731,208.81,208.6,34.1362731]
[1734553644013,34.1362731,208.85,208.71,5.75310265]
[1734553644310,34.1362731,208.89,208.71,5.75310265]
[1734553644812,34.1362731,208.82,208.6,54.72]
[1734553645110,34.1362731,208.82,208.61,34.1362731]
[1734553645311,34.1362731,208.82,208.71,5.73527338]
[1734553645612,34.1362731,208.82,208.61,34.1362731]
[1734553645613,36.5319731,208.82,208.61,34.1362731]
[1734553645813,34.1362731,208.89,208.71,5.73872421]
[1734553646112,34.1362731,208.79,208.61,34.1362731]
[1734553646509,2.3949,208.88,208.75,2.3964]
[1734553646711,34.1362731,208.89,208.69,5.85374728]
[1734553646911,34.1362731,208.89,208.72,34.1362731]
[1734553647105,34.1362731,208.98,208.8,34.1362731]
[1734553647413,34.1362731,208.98,208.76,34.1362731]
[1734553647617,2.3944,208.93,208.83,2.3955]
[1734553647809,34.1362731,208.9,208.72,34.1362731]
[1734553648015,34.1362731,208.86,208.69,5.85374728]
[1734553648211,34.1362731,208.9,208.61,34.1362731]
[1734553648516,34.1362731,208.78,208.56,34.1362731]
[1734553648710,34.1362731,208.8,208.6,34.1362731]
[1734553648907,34.1362731,208.8,208.65,5.73409521]
[1734553649311,34.1362731,208.9,208.65,5.73409521]
[1734553649713,34.1362731,208.9,208.81,2.3957]
[1734553649916,34.1362731,208.9,208.72,34.1362731]
[1734553650112,34.1362731,209.0,208.76,34.1362731]
[1734553650311,34.1362731,209.0,208.7,34.1362731]
[1734553650312,34.1362731,209.04,208.84,34.1362731]
[1734553650615,154.4486388,209.2,208.92,34.1362731]
[1734553650818,36.5280731,209.16,208.96,34.1362731]
[1734553651112,34.1362731,209.2,209.0,34.1362731]
[1734553651307,34.1362731,209.16,209.0,5.76568839]
[1734553651709,34.1362731,209.24,209.04,34.1362731]
[1734553651913,5.78812745,209.29,209.08,34.1362731]
[1734553652506,34.1362731,209.3,209.08,34.1362731]
[1734553652712,34.1362731,209.3,209.12,34.1362731]
[1734553652920,34.1362731,209.3,209.15,5.83998106]
[1734553653108,34.1362731,209.26,209.04,34.1362731]
[1734553653314,34.1362731,209.24,209.16,2.3917]
[1734553653508,5.81759466,209.31,209.12,34.1362731]
[1734553653912,34.1362731,209.28,209.08,39.87235829]
[1734553654113,34.1362731,209.36,209.16,34.1362731]
[1734553654414,34.1362731,209.44,209.36,2.3894]
[1734553654615,34.1362731,209.48,209.28,34.1362731]
[1734553654816,34.1362731,209.52,209.32,34.1362731]
[1734553655019,34.1362731,209.56,209.42,2.3888]
[1734553655217,39.91885313,209.56,209.36,34.1362731]
[1734553655419,34.1362731,209.52,209.3,34.1362731]
[1734553655814,34.1362731,209.6,209.39,34.1362731]
[1734553656022,34.1362731,209.6,209.43,34.1362731]
[1734553656319,34.1362731,209.64,209.43,34.1362731]
[1734553656510,34.1362731,209.68,209.47,34.1362731]
[1734553656713,34.1362731,209.68,209.51,34.1362731]
[1734553656912,34.1362731,209.72,209.51,34.1362731]
[1734553657112,34.1362731,209.72,209.52,5.86828822]
[1734553657311,34.1362731,209.68,209.52,5.86828822]
[1734553657916,34.1362731,209.56,209.36,34.1362731]
[1734553658317,34.1362731,209.6,209.38,2.3892]
[1734553658318,34.1362731,209.52,209.38,2.3892]
[1734553658525,34.1362731,209.48,209.38,5.73870999]
[1734553658721,34.1362731,209.44,209.27,54.66]
[1734553659021,34.1362731,209.5,209.24,5.78164367]
[1734553659022,34.1362731,209.36,209.24,5.78164367]
[1734553659420,34.1362731,209.44,209.24,39.91791677]
[1734553659618,5.67096551,209.49,209.24,39.91791677]
[1734553659619,34.1362731,209.36,209.24,5.78164367]
[1734553659819,34.1362731,209.4,209.24,5.78164367]
[1734553660021,34.1362731,209.5,209.28,34.1362731]
[1734553660220,34.1362731,209.5,209.32,34.1362731]
[1734553660221,0.41758,209.47,209.32,34.1362731]
[1734553660421,34.1362731,209.58,209.4,34.1362731]
[1734553660620,34.1362731,209.66,209.44,34.1362731]
[1734553660819,34.1362731,209.7,209.52,34.1362731]
[1734553661023,34.1362731,209.7,209.48,34.1362731]
[1734553661224,34.1362731,209.7,209.52,34.1362731]
[1734553661521,5.79196598,209.78,209.58,5.84988564]
[1734553661728,34.1362731,209.75,209.58,5.84988564]
[1734553661929,34.1362731,209.8,209.69,2.3856]
[1734553662127,34.1362731,209.87,209.67,34.1362731]
[1734553662728,34.1362731,209.91,209.71,34.1362731]
[1734553662931,34.1362731,209.79,209.36,96.0]
[1734553663130,34.1362731,209.79,209.69,5.85446178]
[1734553663326,34.1362731,209.83,209.69,5.85446178]
[1734553663526,34.1362731,209.87,209.74,2.3851]
[1734553663832,34.1362731,209.87,209.69,5.85446178]
[1734553664528,5.77831828,209.94,209.72,34.1362731]
[1734553664734,88.7762731,210.0,209.76,34.1362731]
[1734553664735,34.1362731,210.0,209.76,34.1362731]
[1734553665029,54.6,210.18,209.84,34.1362731]
[1734553665233,34.1362731,210.07,209.84,34.1362731]
[1734553665432,34.1362731,210.03,209.91,5.70453505]
[1734553665731,34.1362731,210.03,209.95,2.3826]
[1734553666032,34.1362731,210.15,209.96,34.1362731]
[1734553666335,34.1362731,210.07,209.91,5.70453505]
[1734553666537,34.1362731,210.1,209.91,5.70453505]
[1734553666734,34.1362731,210.14,209.94,34.1362731]
[1734553666935,34.1362731,210.2,209.98,34.1362731]
[1734553667128,34.1362731,210.2,210.02,34.1362731]
[1734553667535,34.1362731,210.24,210.02,34.1362731]
[1734553667731,34.1362731,210.2,210.02,34.1362731]
[1734553667929,37.33629855,210.21,210.09,2.3811]
[1734553668138,37.33629855,210.17,210.07,5.68051837]
[1734553668538,37.33629855,210.13,209.96,37.33629855]
[1734553668836,43.00749259,210.29,210.08,37.33629855]
[1734553669034,37.33629855,210.29,210.22,2.3796]
[1734553669240,37.33629855,210.33,210.16,37.33629855]
[1734553669839,37.33629855,210.29,210.12,37.33629855]
[1734553670039,37.33629855,210.29,210.08,37.33629855]
[1734553670339,37.33629855,210.21,210.13,5.62317668]
[1734553670539,37.33629855,210.17,209.95,37.33629855]
[1734553670740,37.33629855,210.09,209.91,37.33629855]
[1734553670940,37.33629855,210.01,209.83,37.33629855]
[1734553671138,37.33629855,210.01,209.91,2.3831]
[1734553671338,37.33629855,210.05,209.85,37.33629855]
[1734553671540,37.33629855,210.09,209.89,42.99605989]
[1734553671838,37.33629855,210.13,209.93,37.33629855]
[1734553672341,37.33629855,210.09,209.89,42.99605989]
[1734553672636,37.33629855,210.17,209.97,37.33629855]
[1734553672837,5.708867,210.3,210.09,37.33629855]
[1734553673236,5.708867,210.3,210.13,37.33629855]
[1734553673638,37.33629855,210.36,210.13,37.33629855]
[1734553673941,38.28686889,210.4,210.21,37.33629855]
[1734553674441,37.33629855,210.36,210.2,5.75803208]
[1734553674842,37.27540642,210.38,210.2,5.75803208]
[1734553675140,37.27540642,210.34,210.2,5.75803208]
[1734553675336,37.27540642,210.32,210.09,54.48]
[1734553675541,37.27540642,210.22,210.02,37.27540642]
[1734553675737,37.27540642,210.32,210.12,5.8317423]
[1734553675938,37.27540642,210.32,210.21,2.3797]
[1734553676243,37.27540642,210.36,210.18,37.27540642]
[1734553676434,0.95057034,210.4,210.26,37.27540642]
[1734553676940,37.27540642,210.41,210.25,37.27540642]
[1734553677137,37.27540642,210.36,210.16,37.27540642]
[1734553677337,37.27540642,210.4,210.2,37.27540642]
[1734553677538,37.27540642,210.4,210.3,2.3787]
[1734553677737,37.27540642,210.4,210.2,37.27540642]
[1734553677939,37.27540642,210.28,210.17,0.8868]
[1734553678137,37.27540642,210.28,210.18,8.16331106]
[1734553678439,37.27540642,210.28,210.17,0.8868]
[1734553678838,37.27540642,210.32,210.21,2.3797]
[1734553679037,37.27540642,210.32,210.17,0.8868]
[1734553679233,42.96597379,210.32,210.17,0.8868]
[1734553679634,37.27540642,210.36,210.17,0.8868]
[1734553679833,37.27540642,210.4,210.18,37.27540642]
[1734553680044,37.27540642,210.4,210.27,2.3791]
[1734553680235,37.27540642,210.4,210.18,37.27540642]
[1734553680440,37.27540642,210.32,210.17,0.8868]
[1734553681143,37.27540642,210.4,210.33,2.3784]
[1734553681338,37.27540642,210.49,210.27,37.27540642]
[1734553681639,37.27540642,210.54,210.43,2.3772]
[1734553681841,42.9931207,210.54,210.32,37.27540642]
[1734553682044,42.9931207,210.54,210.31,5.65551559]
[1734553682245,37.27540642,210.47,210.31,5.65551559]
[1734553682441,37.27540642,210.51,210.31,42.93092201]
[1734553682643,37.27540642,210.47,210.31,5.65551559]
[1734553682844,37.27540642,210.43,210.31,5.65551559]
[1734553683444,37.27540642,210.35,210.17,0.8868]
[1734553683741,37.27540642,210.31,210.21,7.9616043]
[1734553683940,37.27540642,210.35,210.21,5.5819043]
[1734553684242,37.27540642,210.47,210.36,2.378]
[1734553684446,37.27540642,210.51,210.33,37.27540642]
[1734553684847,37.27540642,210.55,210.33,37.27540642]
[1734553685144,37.27540642,210.59,210.32,37.27540642]
[1734553685341,39.65030642,210.65,210.48,2.3767]
[1734553685546,37.27540642,210.65,210.41,37.27540642]
[1734553685741,37.27540642,210.58,210.32,37.27540642]
[1734553685943,37.27540642,210.54,210.33,0.87344866]
[1734553686142,37.27540642,210.54,210.32,37.27540642]
[1734553686342,37.27540642,210.5,210.32,37.27540642]
[1734553686648,37.27540642,210.58,210.38,5.71890966]
[1734553686846,37.27540642,210.62,210.4,37.27540642]
[1734553687046,37.27540642,210.62,210.44,37.27540642]
[1734553687240,37.27540642,210.62,210.38,5.71890966]
[1734553687241,37.27540642,210.7,210.48,37.27540642]
[1734553687444,42.9423986,210.7,210.48,37.27540642]
[1734553687646,37.27540642,210.7,210.48,37.27540642]
[1734553687951,37.27540642,210.7,210.43,37.27540642]
[1734553687952,37.27540642,210.86,210.63,37.27540642]
[1734553688247,37.27540642,210.74,210.58,5.62077992]
[1734553688447,37.27540642,210.78,210.69,2.3743]
[1734553688653,37.27540642,210.82,210.62,37.27540642]
[1734553689147,5.72894782,210.86,210.66,37.27540642]
[1734553689148,37.27540642,210.86,210.66,37.27540642]
[1734553689445,37.27540642,210.86,210.71,5.58649338]
[1734553689750,37.27540642,210.9,210.71,5.58649338]
[1734553689944,42.93939502,210.95,210.74,37.27540642]
[1734553690141,37.27540642,210.94,210.74,37.27540642]
[1734553690342,37.27540642,210.9,210.71,5.58649338]
[1734553690945,37.27540642,210.86,210.71,5.58649338]
[1734553691345,37.27540642,210.94,210.74,37.27540642]
[1734553691545,37.27540642,210.94,210.71,5.58649338]
[1734553691748,37.27540642,210.86,210.74,2.3737]
[1734553691950,37.27540642,210.86,210.71,5.58649338]
[1734553691951,37.27540642,210.82,210.71,5.58649338]
[1734553692251,37.27540642,210.82,210.56,54.34]
[1734553692252,37.27540642,210.77,210.56,54.34]
[1734553692455,37.27540642,210.81,210.67,5.77231984]
[1734553692954,37.27540642,210.85,210.67,5.77231984]
[1734553693154,37.27540642,210.89,210.7,37.27540642]
[1734553693654,37.27540642,210.81,210.67,5.77231984]
[1734553693854,37.27540642,210.85,210.67,5.77231984]
[1734553694055,5.55926865,210.95,210.67,5.77231984]
[1734553694056,37.27540642,210.89,210.69,37.27540642]
[1734553694451,37.27540642,210.93,210.73,37.27540642]
[1734553694753,37.27540642,210.97,210.77,37.27540642]
[1734553694957,37.27540642,210.97,210.91,2.3719]
[1734553695164,37.27540642,210.97,210.82,5.60013302]
[1734553695454,37.27540642,210.97,210.9,2.3719]
[1734553695656,37.27540642,211.05,210.85,37.27540642]
[1734553696356,37.27540642,210.96,210.78,2.9282]
[1734553696558,37.27540642,210.92,210.81,5.55514517]
[1734553696853,37.27540642,211.2,210.81,5.55514517]
[1734553697050,37.27540642,211.02,210.88,2.3722]
[1734553697252,37.27540642,210.98,210.81,5.55514517]
[1734553697445,37.27540642,210.94,210.81,5.55514517]
[1734553697848,37.27540642,210.86,210.68,37.27540642]
[1734553698047,37.27540642,210.86,210.75,5.6852544]